[Event "NY Presidents Day Schiller-C 2024"]
[Site "New York"]
[Date "2024.02.19"]
[Round "8.5"]
[White "Plat, Vojtech"]
[Black "Mou, Iris"]
[Result "1-0"]
[ECO "D48"]
[WhiteElo "2516"]
[BlackElo "2128"]
[Annotator "TA"]
[PlyCount "117"]
[EventDate "2024.02.14"]
[EventType "schev"]
[EventCountry "USA"]
[SourceTitle "playchess.com"]
[Source "ChessBase"]
[SourceQuality "1"]
[TimeControl "5400+30"]

{[%evp 39,117,0,6,-27,-6,-16,0,0,0,0,0,-12,-11,-13,0,-13,354,-9,0,0,59,-64,0,0,7,-14,-24,-17,-7,-61,-50,-87,-16,-77,-34,-47,-50,-59,-52,-50,-47,-58,-47,-47,-47,-49,-54,-54,0,-125,-84,-89,-79,-132,-100,-130,-133,-131,-58,-56,-49,-58,-16,-55,-55,-55,-55,-55,0,0,0,0,0,0,375,375,367,367,348,308]} 1. d4 {[%emt 0:00:04]} Nf6 {[%emt 0:12:05]} 2. Nf3 {[%emt 0:00:11]} e6 {[%emt 0:00:16]} 3. e3 {[%emt 0:00:15]} d5 {[%emt 0:00:27]} 4. c4 {[%emt 0:00:11]} a6 {[%emt 0:00:52]} 5. Nc3 {[%emt 0:00:19]} dxc4 {[%emt 0:00:21]} 6. Bxc4 {[%emt 0:00:09]} b5 {[%emt 0:00:15]} 7. Bd3 {[%emt 0:00:11]} Bb7 {[%emt 0:00:25]} 8. O-O {[%emt 0:00:27]} c5 {[%emt 0:03:09]} 9. Qe2 {[%emt 0:00:28]} Nbd7 {[%emt 0:02:03]} 10. b3 {[%emt 0:00:28]} Qc7 {[%emt 0:03:10]} 11. Bb2 {[%emt 0:00:24]} Bd6 {[%emt 0:06:25]} 12. Rac1 {[%emt 0:00:48]} Qb8 {[%emt 0:05:28]} 13. h3 {[%emt 0:01:29]} O-O {[%emt 0:01:13]} 14. Rfd1 {[%emt 0:00:42]} Rd8 {[%emt 0:07:23]} 15. Bb1 {[%emt 0:00:31]} cxd4 {[%emt 0:02:10]} 16. Nxd4 {[%emt 0:01:26]} Nc5 {[%emt 0:01:11]} 17. b4 {[%emt 0:01:27]} Ncd7 {[%emt 0:02:50]} 18. a3 {[%emt 0:00:07]} Ne5 {[%emt 0:02:34]} 19. Ba2 {[%emt 0:00:34]} Qa7 {[%emt 0:03:52]} 20. Rc2 {[%emt 0:12:21]} Qb6 {[%emt 0:02:49]} 21. Rcd2 {[%emt 0:00:53]} Bc7 {[%emt 0:03:45]} 22. Ba1 {[%emt 0:04:10]} Rac8 {[%emt 0:03:00]} (22... Ng6 {is more complex.} 23. Nb3 Nh4 24. e4 Bc6) 23. a4 {[%emt 0:02:41]} bxa4 {[%emt 0:04:30]} 24. Nxa4 {[%emt 0:00:04]} Qxb4 {[%emt 0:01:48]} 25. Rb2 {[%emt 0:00:13]} Qxa4 {[%emt 0:00:49]} 26. Rxb7 {[%emt 0:00:04]} Nc6 {[%emt 0:08:56]} 27. Rdb1 {[%emt 0:01:15] [#]} Rb8 $2 {[%emt 0:04:03][%mdl 8192]} (27... Nxd4 $1 $11 {and Black has nothing to worry.} 28. Bxd4 Qc6) 28. Rxb8 $2 {[%emt 0:06:12]} (28. Nxe6 $2 Rxb7 29. Nxd8 Rxb1+ (29... Nxd8 $2 30. Rc1 $19) 30. Bxb1 Qxa1 $19 (30... Nxd8 $2 31. Bxf6 gxf6 32. Qd3 $19)) (28. Rxc7 $18 Rxb1+ 29. Bxb1 Qxa1 30. Qf1 (30. Nxc6 $2 Qxb1+ 31. Qf1 Qb6 $19)) 28... Rxb8 $11 {[%emt 0:02:28]} 29. Rc1 {[%emt 0:00:04]} Nb4 {[%emt 0:02:10]} ({Better is} 29... Nxd4 $11 30. Bxd4 Bd6) 30. Bb1 {[%emt 0:07:17]} (30. Bxe6 $1 $14 fxe6 31. Nxe6) 30... Nbd5 {[%emt 0:01:54]} (30... Qxa1 $2 31. Bxh7+ Nxh7 32. Rxa1 $18) (30... Be5 $15) 31. Bd3 $11 {[%emt 0:04:50]} Qa3 {[%emt 0:02:39]} 32. Qf1 {[%emt 0:00:40]} Qd6 {[%emt 0:05:46]} 33. Nf3 $1 {[%emt 0:00:26]} a5 {[%emt 0:01:25]} 34. e4 {[%emt 0:02:12]} (34. Bd4 $11 Nd7 35. e4) 34... Nb4 $15 {[%emt 0:00:41]} 35. Bb1 {[%emt 0:00:14]} Qe7 {[%emt 0:01:13]} ({Black should play} 35... Qb6 $17) 36. g3 {[%emt 0:01:12]} (36. Bxf6 $11 {remains equal.} gxf6 37. Rc4) 36... Bb6 {[%emt 0:01:04]} 37. Kg2 {[%emt 0:00:11]} h6 {[%emt 0:00:25]} 38. Qc4 {[%emt 0:01:03]} Rd8 {[%emt 0:00:53]} 39. Bc3 {[%emt 0:02:46]} Nd7 {[%emt 0:01:10]} 40. Qe2 {[%emt 0:00:41]} Nc5 {[%emt 0:00:51]} 41. Ne5 {[%emt 0:00:12]} Nb3 {[%emt 0:00:34]} 42. Rd1 {[%emt 0:00:48]} Rxd1 {[%emt 0:00:41]} 43. Qxd1 {[%emt 0:00:01]} a4 {[%emt 0:01:10]} (43... Qc5 $15 44. Qf3 Qc7) 44. Bb2 {[%emt 0:02:18]} (44. Bxb4 $1 $11 Qxb4 45. Qd7) 44... f6 {[%emt 0:00:42]} 45. Nc4 {[%emt 0:01:19]} Bc5 {[%emt 0:00:34]} 46. Qg4 {[%emt 0:01:04]} (46. Bc3 $142) 46... Nc6 {[%emt 0:00:20]} 47. Qh5 {[%emt 0:02:55]} Qf7 {[%emt 0:00:27]} 48. Qd1 {[%emt 0:00:18]} Bd4 {[%emt 0:00:37]} (48... Qb7 $17 49. Qh5 Qd7) 49. Ba3 $1 $15 {[%emt 0:00:15]} Qa7 {[%emt 0:00:37]} 50. Qh5 {[%emt 0:00:58]} Qb8 {[%emt 0:00:24]} (50... Bxf2 $2 51. Qe8+ Kh7 52. Qxe6 $18 (52. Qxc6 Bxg3 53. Qb6 Qd7 $11)) (50... Qd7 {simplifies} 51. Qd1 Ne5 52. Nxe5 fxe5 53. Bc2 Qc6) 51. e5 {[%emt 0:00:39]} f5 $1 {[%emt 0:00:38]} (51... Bxe5 52. Qg6 $11) (51... Nxe5 52. Nxe5 fxe5 (52... Bxe5 $2 53. Qg6 $18) 53. Qg6 $11) (51... fxe5 $2 52. Qg6 Nc5 53. Bxc5 Bxc5 54. Qxe6+ Kh8 55. Qg6 $18 (55. Qxc6 Qxb1 56. Qxc5 Qe4+ 57. Kh2 Qf5 $18)) 52. Qg6 {[%emt 0:02:33]} Qc8 $1 {[%emt 0:00:23]} (52... Nxe5 $2 53. Qxe6+ Kh8 54. Qxf5 $18 (54. Bxf5 Qa8+ 55. Kg1 Nf3+ 56. Kf1 Bf6 $11)) 53. g4 $1 {[%emt 0:01:24]} Nc5 {[%emt 0:00:40]} (53... Nxe5 $15 54. Nxe5 Bxe5 55. gxf5 Nd2) 54. gxf5 $11 {[%emt 0:01:03]} Ne7 {[%emt 0:00:16]} (54... Nxe5 $2 {loses.} 55. Nxe5 Qb7+ (55... Bxe5 $2 56. Bxc5 Qb7+ 57. f3 $18) 56. Nf3 Qxb1 57. Nxd4 $18) 55. Qg4 {[%emt 0:00:16]} Qb7+ {[%emt 0:00:50]} 56. Kh2 {[%emt 0:00:15]} Qd5 $2 {[%emt 0:00:30][%mdl 8192]} (56... Qxb1 $11 57. Qxd4 Nxf5 58. Qxc5 Qf1) 57. f6 $1 $18 {[%emt 0:00:48]} Bxe5+ {[%emt 0:00:26]} 58. Nxe5 {[%emt 0:00:09]} Qxe5+ {[%emt 0:00:09]} 59. Qg3 {[%emt 0:01:06]} (59. f4 Qxf6 60. Bxc5 Qb2+ 61. Qg2 Qxb1 62. Bxe7 Qb8 $16) 1-0

[Event "NY Presidents Day Schiller-C 2024"]
[Site "New York"]
[Date "2024.02.19"]
[Round "8.6"]
[White "Shangin, Lev"]
[Black "Martin Del Campo Cardenas, Roberto Abel"]
[Result "1/2-1/2"]
[ECO "E91"]
[WhiteElo "1866"]
[BlackElo "2205"]
[Annotator "RC"]
[PlyCount "84"]
[EventDate "2024.02.14"]
[EventType "schev"]
[EventCountry "USA"]
[SourceTitle "playchess.com"]
[Source "ChessBase"]
[SourceQuality "1"]
[TimeControl "5400+30"]

1. d4 {[%emt 0:00:02]} Nf6 {[%emt 0:01:10]} 2. c4 {[%emt 0:00:23]} d6 {[%emt 0:00:06]} 3. Nc3 {[%emt 0:00:43]} g6 {[%emt 0:00:57]} 4. e4 {[%emt 0:00:55]} Bg7 {[%emt 0:00:04]} 5. Nf3 {[%emt 0:00:27]} O-O {[%emt 0:00:06]} 6. Be2 {[%emt 0:00:33]} Bg4 {[%emt 0:00:18]} 7. Be3 {[%emt 0:00:41]} Nfd7 {[%emt 0:00:07]} 8. Qd2 {[%emt 0:00:26]} e5 {[%emt 0:00:43]} 9. d5 {[%emt 0:00:37]} f5 {[%emt 0:00:26]} 10. exf5 {[%emt 0:00:06]} gxf5 {[%emt 0:00:12]} 11. Bg5 {[%emt 0:00:16]} Qe8 {[%emt 0:02:59]} 12. h3 {[%emt 0:01:09]} Bxf3 {[%emt 0:04:05]} 13. gxf3 {[%emt 0:00:13]} Qg6 {[%emt 0:36:03]} 14. h4 {[%emt 0:17:54]} h6 {[%emt 0:02:52]} 15. f4 {[%emt 0:00:57]} hxg5 {[%emt 0:02:58]} 16. h5 {[%emt 0:01:02]} Qe8 {[%emt 0:00:26]} 17. fxg5 {[%emt 0:01:20]} e4 {[%emt 0:02:33]} 18. O-O-O {[%emt 0:07:27]} Qe7 {[%emt 0:15:50]} 19. h6 {[%emt 0:09:18]} Bxc3 {[%emt 0:28:05]} 20. bxc3 {[%emt 0:01:05]} Ne5 {[%emt 0:00:00]} 21. g6 {[%emt 0:06:04]} Nxg6 {[%emt 0:00:00]} 22. Rdg1 {[%emt 0:00:21]} Rf6 {[%emt 0:00:00]} 23. Bh5 {[%emt 0:03:52]} Nd7 {[%emt 0:00:00]} 24. Bxg6 {[%emt 0:00:22]} Kh8 {[%emt 0:02:30]} 25. Rg5 {[%emt 0:04:12]} Ne5 {[%emt 0:00:00]} 26. Bh5 {[%emt 0:05:40]} Qh7 {[%emt 0:00:00]} 27. Be2 {[%emt 0:02:02]} Rg6 {[%emt 0:00:00]} 28. Rxf5 {[%emt 0:07:41]} Rg1+ {[%emt 0:00:00]} 29. Rxg1 {[%emt 0:00:04]} Qxf5 {[%emt 0:00:00]} 30. h7 {[%emt 0:01:59]} Rf8 {[%emt 0:00:00]} 31. Rg2 {[%emt 0:03:22]} Qf4 {[%emt 0:00:00]} 32. Rg8+ {[%emt 0:00:30]} Kxh7 {[%emt 0:00:00]} 33. Rxf8 {[%emt 0:00:07]} Qxf8 {[%emt 0:00:00]} 34. Qe3 {[%emt 0:01:42]} Qh6 {[%emt 0:00:26]} 35. Kd2 {[%emt 0:00:07]} Nd7 {[%emt 0:01:11]} 36. Bg4 {[%emt 0:00:30]} Nc5 {[%emt 0:00:15]} 37. Bf5+ {[%emt 0:00:13]} Kg7 {[%emt 0:00:02]} 38. Qxh6+ {[%emt 0:00:21]} Kxh6 {[%emt 0:00:01]} 39. Ke3 {[%emt 0:00:00]} Kg5 {[%emt 0:01:21]} 40. Bxe4 {[%emt 0:00:21]} Na4 {[%emt 0:00:39]} 41. f4+ {[%emt 0:01:36]} Kf6 {[%emt 0:01:09]} 42. Kd4 {[%emt 0:00:23]} Nc5 {[%emt 0:00:03]} 1/2-1/2

[Event "NY Presidents Day Schiller-C 2024"]
[Site "New York"]
[Date "2024.02.19"]
[Round "8.7"]
[White "Pagan, Jonathan"]
[Black "Podavonov, Alisher"]
[Result "0-1"]
[ECO "B80"]
[WhiteElo "2018"]
[BlackElo "2175"]
[Annotator "RC"]
[PlyCount "82"]
[EventDate "2024.02.14"]
[EventType "schev"]
[EventCountry "USA"]
[SourceTitle "playchess.com"]
[Source "ChessBase"]
[SourceQuality "1"]
[TimeControl "5400+30"]

1. e4 {[%emt 0:00:02]} c5 {[%emt 0:05:46]} 2. Nf3 {[%emt 0:00:05]} e6 {[%emt 0:00:04]} 3. d4 {[%emt 0:00:15]} cxd4 {[%emt 0:00:04]} 4. Nxd4 {[%emt 0:00:05]} Nf6 {[%emt 0:00:03]} 5. Nc3 {[%emt 0:00:07]} d6 {[%emt 0:00:04]} 6. Be3 {[%emt 0:00:19]} a6 {[%emt 0:00:22]} 7. Qd2 {[%emt 0:01:17]} b5 {[%emt 0:02:38]} 8. f3 {[%emt 1:32:20]} Nbd7 {[%emt 0:00:58]} 9. g4 {[%emt 0:00:00]} Nb6 {[%emt 0:00:29]} 10. a4 {[%emt 0:00:00]} Nc4 {[%emt 0:03:44]} 11. Bxc4 {[%emt 0:00:00]} bxc4 {[%emt 0:00:01]} 12. a5 {[%emt 0:00:00]} Qc7 {[%emt 0:02:57]} 13. O-O {[%emt 0:00:00]} Be7 {[%emt 0:07:56]} 14. Nce2 {[%emt 0:00:00]} O-O {[%emt 0:03:55]} 15. g5 {[%emt 0:00:00]} Nd7 {[%emt 0:02:30]} 16. f4 {[%emt 0:00:00]} Nc5 {[%emt 0:03:16]} 17. Ng3 {[%emt 0:00:00]} Bb7 {[%emt 0:18:30]} 18. Qg2 {[%emt 0:00:00]} Rfe8 {[%emt 0:06:44]} 19. Nde2 {[%emt 0:00:00]} d5 {[%emt 0:05:58]} 20. exd5 {[%emt 0:00:00]} Bxd5 {[%emt 0:00:48]} 21. Qf2 {[%emt 0:00:00]} Bf8 {[%emt 0:04:25]} 22. Nc3 {[%emt 0:00:00]} Bb7 {[%emt 0:02:46]} 23. Qe2 {[%emt 0:00:00]} Qc6 {[%emt 0:01:38]} 24. Rf2 {[%emt 0:00:00]} Nd7 {[%emt 0:02:50]} 25. h4 {[%emt 0:00:00]} f5 {[%emt 0:01:19]} 26. gxf6 {[%emt 0:00:00]} Nxf6 {[%emt 0:00:14]} 27. Bd4 {[%emt 0:00:00]} Rad8 {[%emt 0:07:55]} 28. Bxf6 {[%emt 0:00:00]} gxf6 {[%emt 0:00:23]} 29. Kh2 {[%emt 0:00:00]} Bc5 {[%emt 0:05:23]} 30. Rff1 {[%emt 0:00:00]} f5 {[%emt 0:01:33]} 31. Nh5 {[%emt 0:00:00]} Kf7 {[%emt 0:00:54]} 32. Ng3 {[%emt 0:00:00]} Rg8 {[%emt 0:01:17]} 33. Qh5+ {[%emt 0:00:00]} Rg6 {[%emt 0:00:19]} 34. Nce4 {[%emt 0:00:00]} Rd2+ {[%emt 0:02:51]} 35. Kh3 {[%emt 0:00:00]} Kg7 {[%emt 0:01:21]} 36. Rae1 {[%emt 0:00:44]} fxe4 {[%emt 0:01:34]} 37. Qe5+ {[%emt 0:00:10]} Kg8 {[%emt 0:01:02]} 38. Nxe4 {[%emt 0:04:24]} Rdg2 {[%emt 0:00:26]} 39. Qb8+ {[%emt 0:01:13]} Bf8 {[%emt 0:00:11]} 40. f5 {[%emt 0:00:33]} exf5 {[%emt 0:01:57]} 41. Rxf5 {[%emt 0:00:13]} Bc8 {[%emt 0:00:34]} 0-1

[Event "NY Presidents Day Schiller-C 2024"]
[Site "New York"]
[Date "2024.02.19"]
[Round "8.8"]
[White "Ho, Carter"]
[Black "Lapshun, Yury"]
[Result "0-1"]
[ECO "B33"]
[WhiteElo "2180"]
[BlackElo "2337"]
[Annotator "TA"]
[PlyCount "116"]
[EventDate "2024.02.14"]
[EventType "schev"]
[EventCountry "USA"]
[SourceTitle "playchess.com"]
[Source "ChessBase"]
[SourceQuality "1"]
[TimeControl "5400+30"]

{[%evp 18,116,0,0,6,-69,-68,-66,-77,-66,-23,-23,-7,-63,-52,-81,-77,-83,-92,-92,-91,-83,-75,-343,-89,-88,-95,-88,-75,-66,-91,-94,-80,-81,-60,-85,-82,-83,-91,-113,-78,-129,-112,-127,-104,-157,-158,-233,-227,-224,-219,-210,-220,-316,-271,-254,-269,-476,-412,-706,-685,-1725,-234,-234,-228,-273,-273,-255,-177,-233,-81,-75,-75,-138,-65,-61,-44,-44,-45,-576,-565,-581,-517,-517,-498,-9577,-7798,-10020,-9541,-9475,-6745,-5519,-4798,-12388,-11837,-12640,-12390,-9490,-7064,-5624,-4039]} 1. e4 {[%emt 0:00:19]} c5 {[%emt 0:49:27]} 2. Nf3 {[%emt 0:00:06]} Nc6 {[%emt 0:00:08]} 3. d4 {[%emt 0:00:07]} cxd4 {[%emt 0:00:03]} 4. Nxd4 {[%emt 0:00:08]} e5 {[%emt 0:00:04]} 5. Nb5 {[%emt 0:00:45]} d6 {[%emt 0:00:05]} 6. N1c3 {[%emt 0:00:16]} a6 {[%emt 0:00:07]} 7. Na3 {[%emt 0:00:09]} Be6 {[%emt 0:00:41]} 8. Be3 {[%emt 0:15:52]} Nf6 {[%emt 0:03:08]} 9. Nc4 {[%emt 0:01:39]} b5 {[%emt 0:09:24]} 10. Nb6 {[%emt 0:04:54]} Rb8 {[%emt 0:00:02]} 11. Ncd5 {[%emt 0:09:41]} (11. a4 $11) 11... Ng4 $1 $15 {[%emt 0:01:47]} 12. Qd2 {[%emt 0:04:17]} Nxe3 {[%emt 0:00:10] Black is slightly better.} 13. Qxe3 {[%emt 0:00:06]} Nd4 {[%emt 0:02:30]} 14. Bd3 {[%emt 0:00:17]} Be7 {[%emt 0:04:43]} 15. c3 {[%emt 0:01:12]} (15. Nxe7 $11 Qxb6 16. Nf5 Nxf5 17. exf5 Qxe3+ 18. fxe3) 15... Bg5 {[%emt 0:02:50]} 16. Qg3 {[%emt 0:02:16]} Nc6 $36 {[%emt 0:02:14][%cal Oe8g8][%mdl 2048] Black is on the roll.} 17. a4 {[%emt 0:01:02]} O-O {[%emt 0:01:42]} 18. axb5 {[%emt 0:03:48]} axb5 {[%emt 0:00:12]} 19. Ra6 {[%emt 0:01:27]} Rb7 {[%emt 0:02:10] And now ...Nb8 would win.} 20. Nc8 $2 {[%emt 0:13:44][%mdl 8192] [#]} Bh4 $2 {[%emt 0:05:24]} (20... Bf4 $1 $19 {[%cal Rf4g3]} 21. Nxd6 Bxg3 (21... Qxd6 $2 22. Qh4 $19) 22. Nxb7 Qg5) 21. Nce7+ $17 {[%emt 0:03:41]} Nxe7 {[%emt 0:00:14]} ({Don't play} 21... Bxe7 $6 22. Rxc6 Bxd5 23. exd5 $11) 22. Qxh4 {[%emt 0:00:06]} Nxd5 {[%emt 0:00:53]} 23. Qxd8 {[%emt 0:00:07]} Rxd8 {[%emt 0:00:01]} 24. exd5 {[%emt 0:00:02]} Bxd5 {[%emt 0:00:02]} 25. f3 {[%emt 0:00:20]} Kf8 {[%emt 0:01:20]} 26. Kf2 {[%emt 0:00:29]} h5 {[%emt 0:00:52]} 27. Rd1 {[%emt 0:00:46]} Bb3 {[%emt 0:00:18]} 28. Re1 {[%emt 0:03:08]} Bc4 {[%emt 0:01:57]} 29. Bxc4 {[%emt 0:01:56]} ({White should play} 29. Be2) 29... bxc4 {[%emt 0:00:03][%mdl 4096] Endgame. KRR-KRR} 30. Re2 {[%emt 0:00:22]} Ke7 {[%emt 0:00:40]} 31. Rc6 {[%emt 0:00:38]} (31. f4 $142) 31... Rdb8 {[%emt 0:00:03]} 32. f4 {[%emt 0:01:01]} (32. Rxc4 $17 {keeps fighting.} Rxb2 33. f4) 32... Rxb2 $19 {[%emt 0:01:20]} 33. Rxc4 {[%emt 0:01:08]} Rxe2+ {[%emt 0:00:44]} 34. Kxe2 {[%emt 0:00:04] KR-KR} Rb2+ {[%emt 0:00:18]} 35. Kf3 {[%emt 0:00:06]} (35. Kf1 {was the only defense.}) 35... f5 {[%emt 0:01:07] aiming for ...e4+.} 36. fxe5 {[%emt 0:00:27]} dxe5 {[%emt 0:00:02]} 37. Rc7+ $2 {[%emt 0:00:02]} (37. h4 {is the only way for White.}) 37... Kf6 {[%emt 0:00:44] White must now prevent ...e4+.} 38. h4 {[%emt 0:01:41]} (38. Rc6+ $142 Kg5 39. h4+ Kxh4 40. Rg6) 38... e4+ {[%emt 0:00:52]} 39. Kg3 {[%emt 0:00:22]} Rb6 $2 {[%emt 0:01:35]} (39... e3 {[%cal Of5f4] ...f4+! is the strong threat.} 40. Rc6+ Ke5) 40. Kf4 {[%emt 0:00:24]} Re6 {[%emt 0:00:46]} 41. Rd7 {[%emt 0:00:43]} Rc6 {[%emt 0:00:58]} 42. Rb7 {[%emt 0:00:24]} g6 {[%emt 0:00:28][%cal Of6e6]} ({Weaker is} 42... Rxc3 43. Rb6+ Kf7 44. Kxf5 $11) 43. c4 {[%emt 0:00:24]} Re6 $2 {[%emt 0:03:16]} (43... Rxc4 $19 {is more deadly. Hoping for ...Rc2.} 44. Rb6+ Kf7 45. Rb7+ Kg8) 44. c5 $17 {[%emt 0:04:11]} e3 {[%emt 0:00:42]} 45. Rb1 {[%emt 0:00:32]} Re4+ {[%emt 0:00:31]} (45... e2 $17 46. Re1 Re4+ 47. Kg3 Rg4+ 48. Kh3 Rc4 (48... Re4 49. Kg3 $15) 49. Rxe2 Rxc5) 46. Kf3 $15 {[%emt 0:02:18]} e2 {[%emt 0:00:51]} 47. Kf2 {[%emt 0:00:36]} Rxh4 {[%emt 0:00:48]} 48. Rc1 {[%emt 0:01:04][%mdl 8192]} (48. Rb6+ $15 Kf7 49. Rb7+ Ke8 50. Kxe2) 48... Re4 $19 {[%emt 0:01:45] Black is clearly winning.} 49. Ke1 {[%emt 0:00:05] [#]} Ke7 $1 {[%emt 0:00:21]} 50. c6 {[%emt 0:00:34] c7 would kill now.} Kd8 {[%emt 0:00:06]} 51. c7+ {[%emt 0:00:18]} (51. Ra1 $142 Rg4 52. Kxe2 Rxg2+ 53. Kf3) 51... Kc8 {[%emt 0:00:01]} 52. Rc6 {[%emt 0:00:06]} Rg4 {[%emt 0:00:20]} 53. Kxe2 {[%emt 0:00:08]} Rxg2+ {[%emt 0:00:08]} 54. Kf3 {[%emt 0:00:03]} Rg4 {[%emt 0:00:14]} 55. Rc3 {[%emt 0:00:26]} h4 {[%emt 0:00:17] ( -> ...Rg3+)} 56. Kf2 {[%emt 0:00:02]} g5 {[%emt 0:00:17]} 57. Rc5 {[%emt 0:00:17]} f4 {[%emt 0:00:04]} 58. Kf3 {[%emt 0:00:17]} Rg3+ {[%emt 0:00:02] Weighted Error Value: White=0.77/Black=0.35.  Loses game:     	White=2     	---        Missed win:     	---       	Black=1      Mistake:       	White=9     	Black=2      Inaccurate:     	White=2     	Black=2      OK:         	White=12    	Black=15     Best:        	White=7     	Black=7      Strong:       	---       	Black=2} 0-1

[Event "NY Presidents Day Schiller-C 2024"]
[Site "New York"]
[Date "2024.02.19"]
[Round "8.9"]
[White "Tang, Benjamin"]
[Black "Campos Jimenez, Augusto Cesar"]
[Result "0-1"]
[ECO "B33"]
[WhiteElo "2167"]
[BlackElo "2288"]
[Annotator "TA"]
[PlyCount "80"]
[EventDate "2024.02.14"]
[EventType "schev"]
[EventCountry "USA"]
[SourceTitle "playchess.com"]
[Source "ChessBase"]
[SourceQuality "1"]
[TimeControl "5400+30"]

{[%evp 19,80,0,0,-93,-87,-82,-77,-204,-200,-192,-207,-236,-229,-246,-212,-188,-134,-101,-74,-67,-73,-152,-149,-156,-136,-151,-142,-140,-158,-166,-173,-145,-142,-166,-154,-150,-159,-196,-161,-148,-155,-137,-115,-234,-199,-189,-189,-207,-153,-158,-105,-214,-21,-398,-412,-487,-493,-1462,-880,-1317,-1317,-1082,-967]} 1. e4 {[%emt 0:12:14]} c5 {[%emt 0:00:10]} 2. Nf3 {[%emt 0:01:49]} Nc6 {[%emt 0:00:29]} 3. d4 {[%emt 0:00:12]} cxd4 {[%emt 0:00:08]} 4. Nxd4 {[%emt 0:00:04]} Qb6 {[%emt 0:01:41]} 5. Nb3 {[%emt 0:00:32]} Nf6 {[%emt 0:00:04]} 6. Nc3 {[%emt 0:00:15]} e6 {[%emt 0:00:05]} 7. Qe2 {[%emt 0:01:58]} Bb4 {[%emt 0:00:30]} 8. Bd2 {[%emt 0:02:07]} O-O {[%emt 0:02:57]} 9. O-O-O {[%emt 0:00:08]} d5 {[%emt 0:02:58]} 10. exd5 {[%emt 0:03:38]} exd5 {[%emt 0:01:46]} (10... Bxc3 {seems wilder.} 11. Be3 Nd4 12. Qd3 Nxd5 13. bxc3 Nxe3 14. Qxe3 Nxb3+ 15. axb3 Qxe3+ 16. fxe3 b6) 11. a3 {[%emt 0:06:42]} (11. Be3 $11 Qd8 12. Qd3) 11... Bxc3 $1 $17 {[%emt 0:06:16]} 12. Bxc3 {[%emt 0:01:54]} Re8 $1 {[%emt 0:02:50]} (12... Ne4 $6 13. Be1 $14) 13. Qf3 {[%emt 0:07:46]} (13. Qb5 $17 {was necessary.} Qxf2 14. Bxf6 Qxf6 15. Bd3) 13... Bg4 $19 {[%emt 0:17:35]} 14. Qg3 {[%emt 0:00:34] [#] Black must now prevent Bxf6.} d4 $1 {[%emt 0:03:42][%mdl 512]} 15. Nxd4 {[%emt 0:02:55] Strongly threatening Nf3.} (15. Rxd4 Nxd4) 15... Bxd1 {[%emt 0:09:53]} 16. Nxc6 {[%emt 0:03:58]} Bh5 {[%emt 0:07:56]} 17. Nb4 {[%emt 0:14:26] [#]} Rad8 {[%emt 0:01:36] Prevents Nd5.} ({Black should try} 17... Bg6 $1 $19 {...a5 would now be deadly.} 18. Bxf6 Qxf6) 18. Bb5 $17 {[%emt 0:02:26]} Re6 {[%emt 0:00:49]} (18... Qxb5 19. Bxf6 Bg6 20. Bxd8 Rxd8 21. Qc7 $16) 19. Bc4 {[%emt 0:04:09]} Red6 $40 {[%emt 0:05:11][%mdl 128] Repels Nd5. ( -> ...Rd1+). Black goes for the king.} 20. Kb1 {[%emt 0:01:05]} ({Better is} 20. b3) 20... Bg6 {[%emt 0:07:50]} 21. Bxf6 {[%emt 0:04:59]} gxf6 {[%emt 0:00:10]} (21... Rxf6 22. Nd5 Bxc2+ (22... Qxf2 23. Nxf6+ Qxf6 24. Qc7 $14) 23. Ka2 (23. Kc1 Rxd5 24. Bxd5 h5 $17) 23... Rxd5 (23... Qxf2 24. Nxf6+ Qxf6 25. Rf1 $11) 24. Bxd5 $14) 22. h4 {[%emt 0:02:23]} Rd1+ {[%emt 0:02:23]} 23. Rxd1 {[%emt 0:00:03]} Rxd1+ {[%emt 0:00:11]} 24. Ka2 {[%emt 0:00:02]} Qd6 {[%emt 0:01:13] Repels Nd5. Hoping for ...Qxg3.} 25. Qf3 {[%emt 0:05:12][%cal Oh4h5]} Rd4 {[%emt 0:00:18][%csl LRc4,LRh4]} 26. Bb3 {[%emt 0:21:59] [#]} a5 $1 {[%emt 0:02:16]} (26... Rxh4 27. Qxb7 Qc5 (27... Qb6 28. Qxb6 axb6 29. Nd5 $17) 28. f4 $11) 27. h5 {[%emt 0:00:00]} Be4 {[%emt 0:03:29]} (27... axb4 28. hxg6 hxg6 29. Qxb7 $17) 28. Qg4+ {[%emt 0:00:00]} Kf8 {[%emt 0:00:01]} 29. Qc8+ {[%emt 0:00:00]} Qd8 {[%emt 0:11:03] Really sharp!} 30. Qc5+ {[%emt 0:00:00]} Kg7 {[%emt 0:00:07]} 31. f3 {[%emt 0:00:00]} (31. h6+ $17 Kg8 (31... Kxh6 32. c3 $11) 32. f3) 31... axb4 {[%emt 0:00:59]} 32. fxe4 {[%emt 0:00:00]} Rxe4 $19 {[%emt 0:00:23][%mdl 4096] Endgame. KQR-KQB} (32... bxa3 33. Bd5 Rd2 34. h6+ Kg6 (34... Kxh6 $2 35. Qe3+ Kg7 36. Qxd2 $18) 35. Kxa3) 33. h6+ {[%emt 0:00:00]} Kg6 {[%emt 0:00:56]} 34. a4 {[%emt 0:04:00]} Qe7 {[%emt 0:00:56]} (34... Rg4 $142 35. Bc4 Rxg2 36. Qxb4 Rxc2 37. Bxf7+ Kxh6 (37... Kxf7 38. Qb3+ Kg6 39. Qxc2+ f5 40. Qg2+ Kxh6 41. Qh1+ Kg5 42. Qxb7 $11) 38. Qxb7 Qd4) 35. Qc8 {[%emt 0:00:00]} (35. Qxe7 $17 {is a better defense.} Rxe7 36. Bd5) 35... Kxh6 $2 {[%emt 0:02:09]} (35... Re5 $19 36. Qh3 f5) 36. Qg8 $2 {[%emt 0:00:00][%mdl 8192]} (36. Bd5 $11 {and White is okay.}) 36... Re5 {[%emt 0:00:22]} 37. Qa8 {[%emt 0:00:00]} Rg5 {[%emt 0:01:56] Black is clearly winning.} 38. a5 {[%emt 0:00:00]} (38. Qa7 $142) 38... Kg7 {[%emt 0:00:29][%cal Oe7d7]} ({Weaker is} 38... Rxg2 39. a6 Qd6 40. axb7 $11) 39. Kb1 {[%emt 0:00:00]} Qc5 {[%emt 0:03:07]} 40. Qd8 {[%emt 0:00:00]} Rxg2 {[%emt 0:00:57] Weighted Error Value: White=0.53/Black=0.20 (precise) .  Loses game:     	White=1     	---        Missed win:     	---       	Black=1      Mistake:       	White=5     	Black=2      OK:         	White=9     	Black=8      Best:        	White=6     	Black=4      Strong:       	---       	Black=3      Brilliant:      	---       	Black=1} 0-1